fUSD/lending_fUSD_20241223
["ID","MTS","AMOUNT","RATE_DAILY","PERIOD"]
[346443058,1734978632829,-2981.019332,0.00017251,2]
[346443059,1734978632838,-10586.33,0.00017251,2]
[346443060,1734978632848,-2837.21,0.00017251,2]
[346443061,1734978632858,-1778.78,0.00017251,2]
[346443062,1734978632867,-4209.53,0.00017251,2]
[346443063,1734978632876,-1059.61,0.00017251,2]
[346443064,1734978632885,-3342.03,0.00017251,2]
[346443065,1734978632895,-5064.18,0.00017251,2]
[346443066,1734978632904,-2379.44,0.00017251,2]
[346443067,1734978632913,-2571.17,0.00017251,2]
[346443068,1734978632922,-1859.42,0.00017251,2]
[346443069,1734978632932,-1990.01,0.00017251,2]
[346443070,1734978632941,-6368.05,0.00017251,2]
[346443071,1734978632951,-20149.54,0.00017251,2]
[346443072,1734978632960,-3975.82,0.00017251,2]
[346443073,1734978632969,-11142.3,0.00017251,2]
[346443074,1734978632977,-3427.85,0.00017251,2]
[346443075,1734978632987,-4960.48,0.00017251,2]
[346443076,1734978632996,-500.0,0.00017251,2]
[346443077,1734978633006,-15401.22,0.00017251,2]
[346443078,1734978633015,-7652.65,0.00017251,2]
[346443079,1734978633024,-6471.68,0.00017251,2]
[346443080,1734978633033,-500.0,0.00017251,2]
[346443081,1734978633043,-4352.69,0.00017251,2]
[346443082,1734978633052,-1905.93,0.00017251,2]
[346443083,1734978633062,-3111.61,0.00017251,2]
[346443084,1734978633072,-500.0,0.00017251,2]
[346443085,1734978633081,-6179.84,0.00017251,2]
[346443086,1734978633091,-3957.29,0.00017251,2]
[346443087,1734978633101,-729.05,0.00017251,2]
[346443088,1734978633110,-3047.47,0.00017251,2]
[346443089,1734978633120,-6294.67,0.00017251,2]
[346443090,1734978633129,-3965.61,0.00017251,2]
[346443091,1734978633138,-4027.9,0.00017251,2]
[346443092,1734978633147,-4202.78,0.00017251,2]
[346443093,1734978633157,-3139.47,0.00017251,2]
[346443094,1734978633166,-500.0,0.00017251,2]
[346443095,1734978633175,-7192.13,0.00017251,2]
[346443096,1734978633184,-500.0,0.00017251,2]
[346443097,1734978633194,-1772.45,0.00017251,2]
[346443098,1734978633203,-1189.23,0.00017251,2]
[346443099,1734978633212,-3399.0,0.00017251,2]
[346443100,1734978633221,-957.62,0.00017251,2]
[346443101,1734978633230,-500.0,0.00017251,2]
[346443102,1734978633240,-500.0,0.00017251,2]
[346443103,1734978633250,-4124.34,0.00017251,2]
[346443104,1734978633260,-955.17,0.00017251,2]
[346443105,1734978633269,-1403.06520915,0.00017252,2]
[346443106,1734978633278,-657.04,0.00017252,2]
[346443107,1734978633287,-910.82,0.00017252,2]
[346443108,1734978633297,-500.0,0.00017252,2]
[346443109,1734978633307,-780.93,0.00017252,2]
[346443110,1734978633317,-500.0,0.00017252,2]
[346443111,1734978633326,-500.0,0.00017252,2]
[346443112,1734978633335,-500.0,0.00017252,2]
[346443113,1734978633345,-500.0,0.00017252,2]
[346443114,1734978633354,-355.90495513,0.00017252,2]
[346443115,1734978633364,-500.0,0.00017252,2]
[346443116,1734978633373,-500.0,0.00017252,2]
[346443117,1734978633383,-754.48,0.00017252,2]
[346443118,1734978633392,-500.0,0.00017252,2]
[346443119,1734978633401,-500.0,0.00017252,2]
[346443120,1734978633410,-871.91,0.00017252,2]
[346443121,1734978633419,-500.0,0.00017252,2]
[346443122,1734978633429,-549.04,0.00017252,2]
[346443123,1734978633438,-500.0,0.00017252,2]
[346443124,1734978633447,-1105.47,0.00017252,2]
[346443125,1734978633456,-965.45,0.00017252,2]
[346443126,1734978633466,-878.87,0.00017252,2]
[346443127,1734978633475,-500.0,0.00017252,2]
[346443128,1734978633485,-500.0,0.00017252,2]
[346443129,1734978633494,-500.0,0.00017252,2]
[346443130,1734978633504,-500.0,0.00017252,2]
[346443131,1734978633513,-520.62549126,0.00017252,2]
[346443132,1734978633523,-599.26,0.00017252,2]
[346443133,1734978633532,-576.89,0.00017252,2]
[346443134,1734978633541,-936.3,0.00017252,2]
[346443135,1734978633550,-331.64432523,0.00017252,2]
[346443136,1734978633559,-561.68,0.00017252,2]
[346443137,1734978633568,-500.0,0.00017252,2]
[346443138,1734978633578,-500.0,0.00017252,2]
[346443139,1734978633588,-500.0,0.00017252,2]
[346443140,1734978633598,-761.96,0.00017252,2]
[346443141,1734978633608,-1011.78,0.00017252,2]
[346443142,1734978633618,-783.27,0.00017252,2]
[346443143,1734978633627,-537.31,0.00017252,2]
[346443144,1734978633637,-500.0,0.00017252,2]
[346443145,1734978633646,-521.15,0.00017252,2]
[346443146,1734978633655,-529.16558149,0.00017252,2]
[346443147,1734978633664,-500.0,0.00017252,2]
[346443148,1734978633674,-500.0,0.00017252,2]
[346443149,1734978633683,-500.0,0.00017252,2]
[346443150,1734978633693,-500.0,0.00017252,2]
[346443151,1734978633702,-500.0,0.00017252,2]
[346443152,1734978633711,-520.15385005,0.00017252,2]
[346443153,1734978633720,-500.0,0.00017252,2]
[346443154,1734978633729,-558.0,0.00017252,2]
[346443155,1734978633739,-500.0,0.00017252,2]
[346443156,1734978633748,-500.0,0.00017252,2]
[346443157,1734978633757,-500.0,0.00017252,2]
[346443158,1734978633767,-500.0,0.00017252,2]
[346443159,1734978633776,-500.0,0.00017252,2]
[346443160,1734978633787,-500.0,0.00017252,2]
[346443161,1734978633796,-609.08,0.00017252,2]
[346443162,1734978633806,-500.0,0.00017252,2]
[346443163,1734978633816,-500.0,0.00017252,2]
[346443164,1734978633826,-500.0,0.00017252,2]
[346443165,1734978633835,-532.62,0.00017252,2]
[346443166,1734978633845,-1124.95,0.00017252,2]
[346443167,1734978633854,-500.0,0.00017252,2]
[346443168,1734978633865,-760.69,0.00017252,2]
[346443169,1734978633875,-500.0,0.00017252,2]
[346443170,1734978633884,-500.0,0.00017252,2]
[346443171,1734978633894,-1146.03,0.00017252,2]
[346443172,1734978633903,-500.0,0.00017252,2]
[346443173,1734978633913,-634.76,0.00017252,2]
[346443174,1734978633922,-803.4,0.00017252,2]
[346443175,1734978633931,-509.1,0.00017252,2]
[346443176,1734978633940,-500.0,0.00017252,2]
[346443177,1734978633950,-500.0,0.00017252,2]
[346443178,1734978633960,-500.0,0.00017252,2]
[346443179,1734978633969,-726.23,0.00017252,2]
[346443180,1734978633978,-500.0,0.00017252,2]
[346443181,1734978633988,-1224.18,0.00017252,2]
[346443182,1734978633997,-500.0,0.00017252,2]
[346443183,1734978634007,-200.0,0.00017252,2]
[346443184,1734978634017,-585.62,0.00017252,2]
[346443185,1734978634027,-500.0,0.00017252,2]
[346443186,1734978634037,-648.56,0.00017252,2]
[346443187,1734978634046,-1203.6,0.00017252,2]
[346443188,1734978634056,-682.09,0.00017252,2]
[346443189,1734978634066,-2333.77,0.00017252,2]
[346443190,1734978634075,-500.0,0.00017252,2]
[346443191,1734978634085,-500.0,0.00017252,2]
[346443192,1734978634095,-704.81,0.00017252,2]
[346443193,1734978634104,-500.0,0.00017252,2]
[346443194,1734978634114,-500.0,0.00017252,2]
[346443195,1734978634123,-851.14,0.00017252,2]
[346443196,1734978634133,-500.0,0.00017252,2]
[346443197,1734978634142,-501.59400194,0.00017252,2]
[346443198,1734978634152,-500.0,0.00017252,2]
[346443199,1734978634161,-829.33,0.00017252,2]
[346443200,1734978634171,-507.70367425,0.00017252,2]
[346443201,1734978634180,-500.0,0.00017252,2]
[346443202,1734978634190,-500.0,0.00017252,2]
[346443203,1734978634199,-500.0,0.00017252,2]
[346443204,1734978634208,-1730.94,0.00017252,2]
[346443205,1734978634218,-987.09,0.00017252,2]
[346443206,1734978634228,-500.0,0.00017252,2]
[346443207,1734978634237,-617.75,0.00017252,2]
[346443208,1734978634247,-500.0,0.00017252,2]
[346443209,1734978634257,-544.86,0.00017252,2]
[346443210,1734978634267,-500.0,0.00017252,2]
[346443211,1734978634276,-345.21014238,0.00017252,2]
[346443212,1734978634286,-1215.98,0.00017252,2]
[346443213,1734978634295,-962.68,0.00017252,2]
[346443214,1734978634305,-1064.21,0.00017252,2]
[346443215,1734978634314,-765.32,0.00017252,2]
[346443216,1734978634323,-500.0,0.00017252,2]
[346443217,1734978634333,-2019.51,0.00017252,2]
[346443218,1734978634342,-500.0,0.00017252,2]
[346443219,1734978634354,-500.0,0.00017252,2]
[346443220,1734978634364,-800.98,0.00017252,2]
[346443221,1734978634374,-500.0,0.00017252,2]
[346443222,1734978634383,-500.0,0.00017252,2]
[346443223,1734978634393,-1781.22,0.00017252,2]
[346443224,1734978634403,-500.0,0.00017252,2]
[346443225,1734978634413,-786.83,0.00017252,2]
[346443226,1734978634423,-777.03,0.00017252,2]
[346443227,1734978634433,-500.0,0.00017252,2]
[346443228,1734978634442,-2048.77,0.00017252,2]
[346443229,1734978634452,-500.0,0.00017252,2]
[346443230,1734978634461,-806.0,0.00017252,2]
[346443231,1734978634471,-500.0,0.00017252,2]
[346443232,1734978634481,-1317.36,0.00017252,2]
[346443233,1734978634491,-500.0,0.00017252,2]
[346443234,1734978634500,-500.0,0.00017252,2]
[346443235,1734978634509,-500.0,0.00017252,2]
[346443236,1734978634519,-549.62002964,0.00017252,2]
[346443237,1734978634528,-1102.39,0.00017252,2]
[346443238,1734978634538,-500.0,0.00017252,2]
[346443239,1734978634547,-196.40548512,0.00017252,2]
[346443240,1734978634557,-1539.45,0.00017252,2]
[346443241,1734978634567,-886.31,0.00017252,2]
[346443242,1734978634576,-500.0,0.00017252,2]
[346443243,1734978634585,-934.27,0.00017252,2]
[346443244,1734978634595,-1067.46,0.00017252,2]
[346443245,1734978634604,-497.43540294,0.00017252,2]
[346443246,1734978634614,-504.22,0.00017252,2]
[346443247,1734978634623,-500.0,0.00017252,2]
[346443248,1734978634632,-500.0,0.00017252,2]
[346443249,1734978634642,-500.0,0.00017252,2]
[346443250,1734978634652,-1887.18,0.00017252,2]
[346443251,1734978634661,-500.0,0.00017252,2]
[346443252,1734978634671,-500.0,0.00017252,2]
[346443253,1734978634680,-500.0,0.00017252,2]
[346443254,1734978634689,-500.0,0.00017252,2]
[346443255,1734978634698,-500.0,0.00017252,2]
[346443256,1734978634707,-500.0,0.00017252,2]
[346443257,1734978634717,-500.0,0.00017252,2]
[346443258,1734978634726,-500.0,0.00017252,2]
[346443259,1734978634736,-772.27,0.00017252,2]
[346443260,1734978634745,-706.47,0.00017252,2]
[346443261,1734978634755,-500.99619177,0.00017252,2]
[346443262,1734978634764,-2041.27,0.00017252,2]
[346443263,1734978634773,-500.0,0.00017252,2]
[346443264,1734978634783,-500.89401958,0.00017252,2]
[346443265,1734978634795,-500.0,0.00017252,2]
[346443266,1734978634804,-712.24,0.00017252,2]
[346443267,1734978634814,-500.0,0.00017252,2]
[346443268,1734978634827,-500.0,0.00017252,2]
[346443269,1734978634841,-875.17,0.00017252,2]
[346443270,1734978634857,-500.0,0.00017252,2]
[346443271,1734978634870,-500.0,0.00017252,2]
[346443272,1734978634881,-500.0,0.00017252,2]
[346443273,1734978634892,-500.0,0.00017252,2]
[346443274,1734978634904,-569.32,0.00017252,2]
[346443275,1734978634917,-996.92,0.00017252,2]
[346443276,1734978634929,-500.0,0.00017252,2]
[346443277,1734978634942,-630.10359545,0.00017252,2]
[346443278,1734978634956,-500.0,0.00017252,2]
[346443279,1734978634968,-500.0,0.00017252,2]
[346443280,1734978634980,-500.0,0.00017252,2]
[346443281,1734978634992,-609.5,0.00017252,2]
[346443282,1734978635002,-500.0,0.00017252,2]
[346443283,1734978635012,-500.0,0.00017252,2]
[346443284,1734978635025,-686.16,0.00017252,2]
[346443285,1734978635037,-500.0,0.00017252,2]
[346443286,1734978635049,-2147.75,0.00017252,2]
[346443287,1734978635061,-512.37138878,0.00017252,2]
[346443288,1734978635073,-655.52,0.00017252,2]
[346443289,1734978635086,-500.0,0.00017252,2]
[346443290,1734978635098,-500.0,0.00017252,2]
[346443291,1734978635111,-500.0,0.00017252,2]
[346443292,1734978635123,-500.0,0.00017252,2]
[346443293,1734978635137,-500.0,0.00017252,2]
[346443294,1734978635149,-627.09,0.00017252,2]
[346443295,1734978635161,-500.0,0.00017252,2]
[346443296,1734978635173,-500.0,0.00017252,2]
[346443297,1734978635185,-500.0,0.00017252,2]
[346443298,1734978635198,-500.0,0.00017252,2]
[346443299,1734978635210,-500.0,0.00017252,2]
[346443300,1734978635224,-1118.43,0.00017252,2]
[346443301,1734978635235,-500.0,0.00017252,2]
[346443302,1734978635247,-500.55006492,0.00017252,2]
[346443303,1734978635258,-500.0,0.00017252,2]
[346443304,1734978635268,-1978.43,0.00017252,2]
[346443305,1734978635279,-500.0,0.00017252,2]
[346443306,1734978635291,-1473.13,0.00017252,2]
[346443307,1734978635305,-500.33166274,0.00017252,2]
[346443308,1734978635318,-500.0,0.00017252,2]
[346443309,1734978635328,-500.0,0.00017252,2]
[346443310,1734978635338,-500.0,0.00017252,2]
[346443311,1734978635351,-500.0,0.00017252,2]
[346443312,1734978635363,-500.0,0.00017252,2]
[346443313,1734978635376,-500.0,0.00017252,2]
[346443314,1734978635390,-512.27,0.00017252,2]
[346443315,1734978635401,-500.35911176,0.00017252,2]
[346443316,1734978635412,-935.2,0.00017252,2]
[346443318,1734978635422,-500.0,0.00017252,2]
[346443321,1734978635433,-500.0,0.00017252,2]
[346443323,1734978635444,-500.0,0.00017252,2]
[346443325,1734978635454,-500.0,0.00017252,2]
[346443327,1734978635465,-500.0,0.00017252,2]
[346443329,1734978635476,-507.46,0.00017252,2]
[346443331,1734978635487,-500.0,0.00017252,2]
[346443333,1734978635498,-500.0,0.00017252,2]
[346443335,1734978635509,-500.0,0.00017252,2]
[346443336,1734978635520,-500.0,0.00017252,2]
[346443337,1734978635530,-1387.97,0.00017252,2]
[346443338,1734978635542,-500.0,0.00017252,2]
[346443339,1734978635553,-500.0,0.00017252,2]
[346443340,1734978635570,-714.91,0.00017252,2]
[346443341,1734978635580,-500.0,0.00017252,2]
[346443342,1734978635591,-500.0,0.00017252,2]
[346443343,1734978635605,-500.0,0.00017252,2]
[346443344,1734978635617,-728.62,0.00017252,2]
[346443345,1734978635627,-500.0,0.00017252,2]
[346443346,1734978635639,-500.0,0.00017252,2]
[346443347,1734978635650,-500.0,0.00017252,2]
[346443348,1734978635662,-500.62264868,0.00017252,2]
[346443349,1734978635673,-845.29,0.00017252,2]
[346443350,1734978635684,-1713.86,0.00017252,2]
[346443351,1734978635694,-500.0,0.00017252,2]
[346443352,1734978635705,-500.0,0.00017252,2]
[346443353,1734978635716,-1195.09,0.00017252,2]
[346443354,1734978635728,-500.0,0.00017252,2]
[346443355,1734978635739,-620.18,0.00017252,2]
[346443356,1734978635750,-500.0,0.00017252,2]
[346443357,1734978635762,-827.2,0.00017252,2]
[346443358,1734978635773,-500.0,0.00017252,2]
[346443359,1734978635785,-972.52,0.00017252,2]
[346443360,1734978635797,-500.0,0.00017252,2]
[346443361,1734978635809,-500.0,0.00017252,2]
[346443362,1734978635819,-323.85555549,0.00017252,2]
[346443363,1734978635831,-1447.08,0.00017252,2]
[346443364,1734978635842,-536.58,0.00017252,2]
[346443365,1734978635855,-500.0,0.00017252,2]
[346443366,1734978635866,-867.24,0.00017252,2]
[346443367,1734978635878,-500.0,0.00017252,2]
[346443368,1734978635888,-500.0,0.00017252,2]
[346443369,1734978635899,-500.0,0.00017252,2]
[346443370,1734978635910,-500.0,0.00017252,2]
[346443371,1734978635921,-1763.62,0.00017252,2]
[346443372,1734978635932,-500.0,0.00017252,2]
[346443373,1734978635943,-500.0,0.00017252,2]
[346443374,1734978635954,-500.0,0.00017252,2]
[346443375,1734978635964,-552.74,0.00017252,2]
[346443376,1734978635975,-500.0,0.00017252,2]
[346443377,1734978635986,-500.0,0.00017252,2]
[346443378,1734978635997,-500.0,0.00017252,2]
[346443379,1734978636008,-654.46,0.00017252,2]
[346443380,1734978636019,-734.14,0.00017252,2]
[346443381,1734978636030,-500.0,0.00017252,2]
[346443382,1734978636041,-510.47,0.00017252,2]
[346443383,1734978636051,-500.0,0.00017252,2]
[346443384,1734978636062,-887.95,0.00017252,2]
[346443385,1734978636073,-410.76095281,0.00017252,2]
[346443386,1734978636083,-500.0,0.00017252,2]
[346443387,1734978636096,-1152.51,0.00017252,2]
[346443388,1734978636106,-501.4511515,0.00017252,2]
[346443389,1734978636117,-500.0,0.00017252,2]
[346443390,1734978636127,-500.0,0.00017252,2]
[346443391,1734978636138,-909.05,0.00017252,2]
[346443392,1734978636148,-500.0,0.00017252,2]
[346443393,1734978636159,-500.0,0.00017252,2]
[346443394,1734978636169,-1761.62,0.00017252,2]
[346443395,1734978636180,-899.36,0.00017252,2]
[346443396,1734978636191,-500.0,0.00017252,2]
[346443397,1734978636202,-508.29,0.00017252,2]
[346443398,1734978636213,-500.0,0.00017252,2]
[346443399,1734978636224,-500.0,0.00017252,2]
[346443400,1734978636235,-578.67,0.00017252,2]
[346443401,1734978636246,-500.0,0.00017252,2]
[346443402,1734978636257,-729.45,0.00017252,2]
[346443403,1734978636268,-1338.46,0.00017252,2]
[346443404,1734978636279,-11804.3,0.00017252,2]
[346443405,1734978636290,-500.0,0.00017252,2]
[346443406,1734978636302,-1458.56,0.00017252,2]
[346443407,1734978636313,-500.0,0.00017252,2]
[346443408,1734978636324,-580.02,0.00017252,2]
[346443409,1734978636335,-6075.72,0.00017252,2]
[346443410,1734978636347,-500.0,0.00017252,2]
[346443411,1734978636359,-500.0,0.00017252,2]
[346443412,1734978636370,-515.25,0.00017252,2]
[346443413,1734978636380,-629.64,0.00017252,2]
[346443414,1734978636391,-1382.51,0.00017252,2]
[346443415,1734978636402,-3559.79,0.00017252,2]
[346443416,1734978636413,-500.0,0.00017252,2]
[346443417,1734978636423,-3317.06,0.00017252,2]
[346443418,1734978636434,-2350.66,0.00017252,2]
[346443419,1734978636445,-500.0,0.00017252,2]
[346443420,1734978636456,-12992.23,0.00017252,2]
[346443421,1734978636467,-523.42729392,0.00017252,2]
[346443422,1734978636477,-11524.15,0.00017252,2]
[346443423,1734978636488,-531.16,0.00017252,2]
[346443424,1734978636499,-606.93,0.00017252,2]
[346443425,1734978636509,-1071.93,0.00017252,2]
[346443426,1734978636520,-500.0,0.00017252,2]
[346443427,1734978636531,-500.0,0.00017252,2]
[346443428,1734978636542,-9634.95,0.00017252,2]
[346443429,1734978636552,-500.0,0.00017252,2]
[346443430,1734978636563,-500.0,0.00017252,2]
[346443431,1734978636574,-3398.3,0.00017252,2]
[346443432,1734978636586,-2729.81,0.00017252,2]
[346443433,1734978636598,-500.0,0.00017252,2]
[346443434,1734978636609,-3960.41,0.00017252,2]
[346443435,1734978636620,-500.0,0.00017252,2]
[346443436,1734978636631,-1221.95,0.00017252,2]
[346443437,1734978636642,-563.5,0.00017252,2]
[346443438,1734978636653,-1102.98,0.00017252,2]
[346443439,1734978636664,-1186.3,0.00017252,2]
[346443440,1734978636675,-163.19675041,0.00017252,2]
[346443441,1734978636686,-1293.94,0.00017252,2]
[346443442,1734978636697,-500.0,0.00017252,2]
[346443443,1734978636708,-1007.87,0.00017252,2]
[346443444,1734978636719,-1155.29,0.00017252,2]
[346443445,1734978636730,-500.0,0.00017252,2]
[346443446,1734978636742,-6554.24,0.00017252,2]
[346443447,1734978636753,-1893.09,0.00017252,2]
[346443448,1734978636765,-500.0,0.00017252,2]
[346443449,1734978636776,-4918.37,0.00017252,2]
[346443450,1734978636789,-4710.73,0.00017252,2]
[346443451,1734978636800,-877.87,0.00017252,2]
[346443452,1734978636811,-500.0,0.00017252,2]
[346443453,1734978636822,-500.0,0.00017252,2]
[346443454,1734978636834,-1261.02,0.00017252,2]
[346443455,1734978636846,-500.0,0.00017252,2]
[346443456,1734978636857,-18150.48,0.00017252,2]
[346443457,1734978636869,-680.33,0.00017252,2]
[346443458,1734978636880,-1754.49,0.00017252,2]
[346443459,1734978636892,-830.04,0.00017252,2]
[346443460,1734978636902,-4272.01,0.00017252,2]
[346443461,1734978636914,-451.75775199,0.00017252,2]
[346443462,1734978636925,-511.31,0.00017252,2]
[346443463,1734978636936,-9521.29,0.00017252,2]
[346443464,1734978636947,-509.07068706,0.00017252,2]
[346443465,1734978636958,-1056.0,0.00017252,2]
[346443466,1734978636969,-500.0,0.00017252,2]
[346443467,1734978636979,-1163.4,0.00017252,2]
[346443468,1734978636990,-500.0,0.00017252,2]
[346443469,1734978637000,-620.92,0.00017252,2]
[346443470,1734978637011,-837.0,0.00017252,2]
[346443471,1734978637021,-500.0,0.00017252,2]
[346443472,1734978637032,-500.0,0.00017252,2]
[346443473,1734978637043,-500.0,0.00017252,2]
[346443474,1734978637053,-3598.24,0.00017252,2]
[346443475,1734978637063,-500.0,0.00017252,2]
[346443476,1734978637074,-500.0,0.00017252,2]
[346443477,1734978637085,-4095.47,0.00017252,2]
[346443478,1734978637095,-2240.74,0.00017252,2]
[346443479,1734978637105,-500.0,0.00017252,2]
[346443480,1734978637116,-500.0,0.00017252,2]
[346443481,1734978637126,-9046.78,0.00017252,2]
[346443482,1734978637137,-500.0,0.00017252,2]
[346443483,1734978637147,-845.75,0.00017252,2]
[346443484,1734978637158,-8536.8,0.00017252,2]
[346443485,1734978637168,-500.0,0.00017252,2]
[346443486,1734978637179,-500.0,0.00017252,2]
[346443487,1734978637189,-500.0,0.00017252,2]
[346443488,1734978637200,-7932.71,0.00017252,2]
[346443489,1734978637211,-1057.98,0.00017252,2]
[346443490,1734978637221,-673.74,0.00017252,2]
[346443491,1734978637232,-500.0,0.00017252,2]
[346443492,1734978637242,-2368.75,0.00017252,2]
[346443493,1734978637252,-749.57,0.00017252,2]
[346443494,1734978637263,-500.0,0.00017252,2]
[346443495,1734978637274,-500.0,0.00017252,2]
[346443496,1734978637284,-500.0,0.00017252,2]
[346443497,1734978637294,-2431.85,0.00017252,2]
[346443498,1734978637305,-500.0,0.00017252,2]
[346443499,1734978637315,-500.0,0.00017252,2]
[346443500,1734978637326,-2257.43,0.00017252,2]
[346443501,1734978637336,-2171.69,0.00017252,2]
[346443502,1734978637347,-979.88,0.00017252,2]
[346443503,1734978637357,-500.0,0.00017252,2]
[346443504,1734978637368,-500.0,0.00017252,2]
[346443505,1734978637378,-600.73,0.00017252,2]
[346443506,1734978637388,-2395.48,0.00017252,2]
[346443507,1734978637400,-3244.26,0.00017252,2]
[346443508,1734978637410,-500.0,0.00017252,2]
[346443509,1734978637420,-315.99207477,0.00017252,2]
[346443510,1734978637430,-9029.13,0.00017252,2]
[346443511,1734978637440,-1276.39,0.00017252,2]
[346443512,1734978637451,-500.0,0.00017252,2]
[346443513,1734978637461,-2787.63,0.00017252,2]
[346443514,1734978637471,-947.67,0.00017252,2]
[346443515,1734978637481,-500.0,0.00017252,2]
[346443516,1734978637492,-502.83568794,0.00017252,2]
[346443517,1734978637502,-1660.66,0.00017252,2]
[346443518,1734978637513,-544.24391995,0.00017252,2]
[346443519,1734978637523,-1443.8,0.00017252,2]
[346443520,1734978637533,-500.0,0.00017252,2]
[346443521,1734978637544,-705.73,0.00017252,2]
[346443522,1734978637555,-500.0,0.00017252,2]
[346443523,1734978637565,-161.24484295,0.00017252,2]
[346443524,1734978637576,-500.0,0.00017252,2]
[346443525,1734978637586,-678.52,0.00017252,2]
[346443526,1734978637597,-500.0,0.00017252,2]
[346443527,1734978637608,-500.0,0.00017252,2]
[346443528,1734978637619,-2836.82,0.00017252,2]
[346443529,1734978637629,-500.0,0.00017252,2]
[346443530,1734978637640,-500.0,0.00017252,2]
[346443531,1734978637651,-499.84099618,0.00017252,2]
[346443532,1734978637661,-1291.97,0.00017252,2]
[346443533,1734978637672,-1000.96,0.00017252,2]
[346443534,1734978637682,-2196.84,0.00017252,2]
[346443535,1734978637693,-3121.83,0.00017252,2]
[346443536,1734978637704,-500.0,0.00017252,2]
[346443537,1734978637714,-500.0,0.00017252,2]
[346443538,1734978637725,-500.0,0.00017252,2]
[346443539,1734978637736,-2137.27,0.00017252,2]
[346443540,1734978637747,-500.0,0.00017252,2]
[346443541,1734978637758,-1166.62,0.00017252,2]
[346443542,1734978637768,-3486.65,0.00017252,2]
[346443543,1734978637780,-635.2,0.00017252,2]
[346443544,1734978637794,-3006.95,0.00017252,2]
[346443545,1734978637805,-500.0,0.00017252,2]
[346443546,1734978637815,-1026.18,0.00017252,2]
[346443547,1734978637826,-2261.13,0.00017252,2]
[346443548,1734978637838,-1264.37,0.00017252,2]
[346443549,1734978637850,-3361.76,0.00017252,2]
[346443550,1734978637862,-500.0,0.00017252,2]
[346443551,1734978637872,-501.96550579,0.00017252,2]
[346443552,1734978637883,-500.0,0.00017252,2]
[346443553,1734978637894,-4260.52,0.00017252,2]
[346443555,1734978637905,-1188.9,0.00017252,2]
[346443556,1734978637916,-2507.05,0.00017252,2]
[346443557,1734978637927,-500.0,0.00017252,2]
[346443558,1734978637938,-951.49,0.00017252,2]
[346443563,1734978638757,-500.0,0.00017252,2]
[346443567,1734978638790,-500.0,0.00017252,2]
[346443572,1734978638816,-595.42,0.00017252,2]
[346443575,1734978638831,-500.0,0.00017252,2]
[346443576,1734978638840,-500.0,0.00017252,2]
[346443577,1734978638851,-598.04,0.00017252,2]
[346443578,1734978638860,-3889.26,0.00017252,2]
[346443579,1734978638870,-305.91658703,0.00017252,2]
[346443580,1734978638880,-3887.87,0.00017252,2]
[346443581,1734978638889,-500.0,0.00017252,2]